Cogmind - Beta 14 @@@ ROGUE MODE // 2024.09.13 @ 06:03:36 Player: Zaros426 Result: Destroyed by 8R-AWN with 8R-AWN's Boregun Performance ------------- Evolutions (1) 500 Regions Visited (5) 1000 Robots Destroyed (88) 440 Value Destroyed (2371) 2371 Prototype IDs (44) 880 Alien Tech Used (0) 0 Bonus (562) 562 TOTAL SCORE: 5753 Bonus ------- High Alert Combat Kills 292 Aligned with FarCom 300 Friendly Fire -30 Cogmind --------- Core Integrity 0/400 Matter 132/300 Energy 280/280 System Corruption 1% Temperature Cool (9) Movement Treading (225) Ox1 Location -9/Exiles Parts ------- > --- POWER (1) -------- Heavy Ion Engine > --- PROPULSION (3) --- Advanced Treads > --- UTILITY (3) ------ Large Storage Unit Improved Targeting Computer > --- WEAPON (2) ------- Minigun Minigun > --- INVENTORY (15) --- Heavy Ion Engine High-capacity Matter Pod (200) Structural Scanner Supersonic Drone Bay (1/1) Datajack Field Lobotomy Kit (4) Plasma Cutter Heavy Flail Peak State ------------ > --- POWER ------------ Heavy Ion Engine > --- PROPULSION ------- Advanced Treads Advanced Treads > --- UTILITY ---------- Large Storage Unit Improved Targeting Computer Supersonic Drone Bay > --- WEAPON ----------- AWS/Gauss > --- INVENTORY -------- Heavy Ion Engine Heavy Ion Engine High-capacity Matter Pod Structural Scanner Minigun Minigun Minigun Datajack Field Lobotomy Kit Plasma Cutter Heavy Flail [Rating: 39] Favorites ----------- Power Heavy Ion Engine Engine Heavy Ion Engine Propulsion Light Treads Treads Light Treads Utility Large Storage Unit Device Supersonic Drone Bay Storage Large Storage Unit Processor Improved Targeting Computer Protection Hardened Light Armor Plating Weapon Minigun Energy Gun EM Pulse Gun Ballistic Gun Minigun Ballistic Cannon Light Cannon Launcher Grenade Launcher Special Weapon Field Lobotomy Kit Special Melee Weapon Datajack Build | -11 -10 -10 -9 -9 -9 ------- Run | Yrd Mat Min Mat Min Exi Slots Evolved 2 | . . . 2 . . Power . | . . . . . . Propulsion 1 | . . . 1 . . Utility 1 | . . . 1 . . Weapon . | . . . . . . Parts Attached 60 | 6 9 2 26 3 14 Power 6 | 1 1 . 3 . 1 Engine 6 | 1 1 . 3 . 1 Core . | . . . . . . Reactor . | . . . . . . Propulsion 14 | 2 1 . 10 . 1 Treads 14 | 2 1 . 10 . 1 Leg . | . . . . . . Wheel . | . . . . . . Hover . | . . . . . . Flight . | . . . . . . Utility 13 | 1 4 . 5 1 2 Device 2 | . . . . . 2 Storage 4 | 1 2 . 1 . . Processor 2 | . 2 . . . . Hackware . | . . . . . . Protection 5 | . . . 4 1 . Artifact . | . . . . . . Weapon 27 | 2 3 2 8 2 10 Energy Gun 3 | 1 . . 2 . . Energy Cannon . | . . . . . . Ballistic Gun 13 | 1 . . 6 . 6 Ballistic Cannon 2 | . 2 . . . . Launcher 5 | . 1 2 . 1 1 Special Weapon 2 | . . . . . 2 Impact Weapon . | . . . . . . Slashing Weapon . | . . . . . . Piercing Weapon . | . . . . . . Special Melee Weapon 2 | . . . . 1 1 Unidentified Prototypes 1 | . . . 1 . . Parts Lost 7 | . . . 1 . 6 Power 1 | . . . . . 1 Propulsion 3 | . . . . . 3 Utility . | . . . . . . Weapon 3 | . . . 1 . 2 Highest Loss Streak 5 | . . . 1 . 5 To Critical Strikes 4 | . . . . . 4 Average Slot Usage (%) 98 | . 99 99 99 99 94 Engine 12 | . 14 14 11 11 10 Treads 30 | . 27 28 32 33 30 Storage 12 | . 14 14 11 11 11 Processor 12 | . 13 14 11 11 11 Protection 6 | . . . 10 10 9 Energy Gun 2 | . 3 . 5 . . Ballistic Gun 15 | . 14 14 16 19 11 Launcher 4 | . 6 13 . . . Special Melee Weapon 1 | . . . . 1 9 Peak Build Rating 39 | 6 10 11 26 26 39 Average Rating 15 | 5 8 10 18 25 26 On Entrance 12 | . 6 10 10 26 24 Naked Turns . | . . . . . . Heaviest Build 41 | 12 30 31 41 39 38 Greatest Support 66 | 40 40 40 66 66 66 Greatest Overweight (x) 1 | . 1 . . . 1 Average Overweight (x) . | . . . . . . Largest Inventory Capacity 15 | 8 15 15 15 15 15 Average Capacity 14 | 7 14 15 15 15 15 Most Carried 15 | 4 15 15 15 15 15 Average Carried 13 | 2 12 14 14 14 14 Final Capacity 15 | 8 15 15 15 15 15 Final Carried 15 | 4 15 15 15 14 8 Class Distribution -------------------- 90% | Mutant 9% | Scavenger-Mutant Dominant Class ---------------- Mutant | -10/Materials Mutant | -10/Mines Mutant | -9/Materials Mutant | -9/Mines Mutant | -9/Exiles Resources | -11 -10 -10 -9 -9 -9 ----------- Run | Yrd Mat Min Mat Min Exi Matter Collected 2252 | 287 444 73 1008 398 42 Remotely . | . . . . . . Salvage Created 3384 | 95 729 60 2212 263 25 Parts 206 | 12 48 3 128 15 . Haulers Intercepted 2 | . . . 2 . . Recyclers Shooed 7 | . 3 . 4 . . Parts Field Recycled . | . . . . . . Retrieved Matter . | . . . . . . Parts Self-Destructed . | . . . . . . Prevented . | . . . . . . Kills | -11 -10 -10 -9 -9 -9 ------- Run | Yrd Mat Min Mat Min Exi Combat Hostiles Destroyed 74 | . 17 2 41 9 5 Guns 48 | . 2 . 40 6 . Cannons 8 | . 8 . . . . AOE 17 | . 7 2 . 3 5 Classes Destroyed 13 | 1 6 . 3 3 . Worker 7 | . 7 . . . . Builder 1 | . . . . 1 . Tunneler 5 | 4 . . 1 . . Hauler 2 | . . . 2 . . Recycler 3 | . 3 . . . . Operator 2 | . 1 . 1 . . Watcher 8 | . 3 . 5 . . Swarmer 6 | . 6 . . . . Grunt 45 | . 11 2 27 5 . Brawler 4 | . . . 4 . . Duelist 1 | . . . . 1 . Sentry 10 | . . . 10 . . Assembled 8 | . . . . 3 5 Best Kill Streak 7 | 2 7 2 5 4 5 Combat Bots Only 6 | . 6 2 5 3 5 Max Kills in Single Turn 3 | 1 2 2 2 1 3 Gunslinging . | . . . . . . Exploded 3 | . 1 2 . 1 3 Melee . | . . . . . . Uniques/NPCs Destroyed . | . . . . . . Combat | -11 -10 -10 -9 -9 -9 -------- Run | Yrd Mat Min Mat Min Exi Hostile Shots Fired 326 | . 61 2 118 33 112 Missed 98 | . 15 1 41 8 33 Damage Taken 3377 | . 520 10 994 384 1469 Core 518 | . 110 . 106 34 268 Absorbed by Shields . | . . . . . . Regen/Repaired (Parts) 127 | . 127 . . . . Core Remaining (%) 78 | 100 . 56 . . . Volleys Fired 245 | 9 58 3 138 24 13 Largest 2 | 2 2 1 2 2 2 Hottest 80 | 60 60 30 80 50 50 Shots Fired 440 | 18 94 3 259 43 23 Gun 375 | 18 41 . 257 39 20 Cannon 34 | . 34 . . . . Launcher 30 | . 19 3 2 4 2 Special 1 | . . . . . 1 Kinetic 319 | 9 73 . 178 39 20 Thermal . | . . . . . . Explosive 30 | . 19 3 2 4 2 Electromagnetic 90 | 9 2 . 79 . . Robot Hit Streak 11 | 6 7 3 11 8 11 Robot Miss Streak 6 | 2 3 . 6 5 2 Penetration Max . | . . . . . . Secondary Targets 3 | . . . 1 2 . Max Gunslinging Chain 1 | . . . 1 1 . Shots Hit Robots 297 | 9 58 3 174 30 23 Core Hits 155 | 4 44 5 73 16 13 Critical Kills . | . . . . . . Critical Parts Destroyed 2 | . 2 . . . . Critical Strikes 3 | . 3 . . . . Destroy 2 | . 2 . . . . Blast 1 | . 1 . . . . Melee Attacks 4 | . . . . 1 3 Impact . | . . . . . . Slashing . | . . . . . . Piercing . | . . . . . . Sneak Attacks 4 | . . . . 1 3 Combat Hostiles . | . . . . . . Follow-up Attacks . | . . . . . . Damage Inflicted 6173 | 108 1682 199 2782 735 667 Guns 4075 | 108 400 . 2756 491 320 Cannons 436 | . 436 . . . . Explosions 1662 | . 846 199 26 244 347 Melee . | . . . . . . Ramming . | . . . . . . Kinetic 3714 | 81 821 . 2001 491 320 Thermal 22 | . . . 22 . . Explosive 1640 | . 846 199 4 244 347 Electromagnetic 797 | 27 15 . 755 . . Impact . | . . . . . . Slashing . | . . . . . . Piercing . | . . . . . . Highest Corruption 1 | . . . 1 1 1 Average Corruption 1 | . . . 1 1 1 Corruption Purged . | . . . . . . Corruption Blocked . | . . . . . . Effects 20 | . . . 9 6 5 Message Errors 6 | . . . 4 . 2 Matter Fused 4 | . . . 3 1 . Heat Flow Errors 1 | . . . . . 1 Energy Discharges 2 | . . . . 2 . Parts Fused 2 | . . . 1 1 . Data Loss (minor) 4 | . . . 1 1 2 Data Loss (major) 1 | . . . . 1 . Overload Shots . | . . . . . . Overflow Damage 35 | . 18 . . 10 7 Projectiles . | . . . . . . Explosions 35 | . 18 . . 10 7 Melee . | . . . . . . Knockbacks 4 | . 4 . . . . Impact . | . . . . . . Kinetic 4 | . 4 . . . . Secondary . | . . . . . . Self-Inflicted Damage 135 | . 20 . . 38 77 Shots 4 | . 1 . . 1 2 Rammed . | . . . . . . Targets Rammed . | . . . . . . Kicked . | . . . . . . Crushed . | . . . . . . Highest Temperature 232 | . 51 1 132 119 232 Average Temperature 32 | . 25 1 28 44 58 Received Heat Transfer 813 | . 195 6 459 147 6 Siege Activations . | . . . . . . Robots Corrupted 1 | . . . 1 . . Combat Hostiles 1 | . . . 1 . . Parts Fried 4 | . . . 4 . . Impact Corruptions . | . . . . . . Robots Melted . | . . . . . . Combat Hostiles . | . . . . . . Parts Melted . | . . . . . . Heat Transferred 50 | . . . 50 . . Parts Sabotaged . | . . . . . . Parts Stolen . | . . . . . . Parts Stripped . | . . . . . . Power Chain Reactions 1 | . . . 1 . . Alert | -11 -10 -10 -9 -9 -9 ------- Run | Yrd Mat Min Mat Min Exi Peak Influence 888 | 20 486 194 888 491 . Initial 346 | . 13 189 . 346 . Average 293 | 9 217 84 452 353 . Maximum Alert Level 3 | . 2 . 3 2 . Low Security (%) 40 | 100 43 100 14 . . Level 1 28 | . 44 . 22 74 . Level 2 22 | . 12 . 41 25 . Level 3 8 | . . . 20 . . Level 4 . | . . . . . . Level 5 . | . . . . . . High Security . | . . . . . . Max Security . | . . . . . . Squads Dispatched 9 | . 3 . 6 . . Investigation 6 | . 2 . 4 . . Extermination . | . . . . . . Reinforcement 3 | . 1 . 2 . . Assault . | . . . . . . Garrison . | . . . . . . Intercept . | . . . . . . Searches Triggered . | . . . . . . Construction Impeded . | . . . . . . Haulers Reinforced . | . . . . . . Active Scanning Responses . | . . . . . . Cargo Convoy Interrupts . | . . . . . . Stealth | -11 -10 -10 -9 -9 -9 --------- Run | Yrd Mat Min Mat Min Exi Distress Signals 4 | . 3 . 1 . . Communications Jammed . | . . . . . . Distress Signals . | . . . . . . Times Spotted 100 | . 25 2 55 10 8 Peak Tracking Total 9 | . 5 2 4 3 9 Tactical Retreats 4 | . 3 . 1 . . Traps | -11 -10 -10 -9 -9 -9 ------- Run | Yrd Mat Min Mat Min Exi Traps Triggered 2 | . . . 2 . . Indirectly . | . . . . . . Trap Hack Attempts . | . . . . . . Triggered . | . . . . . . Disarmed . | . . . . . . Reprogrammed . | . . . . . . Reused . | . . . . . . Traps Extracted . | . . . . . . Installed 2 | . . 1 1 . . Triggered . | . . . . . . Most Traps Carried 1 | . . 1 1 . . Machines | -11 -10 -10 -9 -9 -9 ---------- Run | Yrd Mat Min Mat Min Exi Machines Disabled 6 | . 3 1 1 . 1 Max in Single Turn 2 | . 2 1 1 . 1 Machines Repaired . | . . . . . . Machines Dismantled . | . . . . . . Machines Sabotaged . | . . . . . . Overloaded Fab Kills . | . . . . . . Hacking | -11 -10 -10 -9 -9 -9 --------- Run | Yrd Mat Min Mat Min Exi Machines Accessed 26 | . 10 1 13 . 2 Terminals 16 | . 7 1 8 . . Fabricators . | . . . . . . Repair Stations 2 | . 1 . 1 . . Recycling Units 4 | . 2 . 2 . . Scanalyzers 2 | . . . 2 . . Garrison Access . | . . . . . . Total Hacks 96 | . 19 2 51 . 24 Successful 76 | . 14 1 37 . 24 Failed 20 | . 5 1 14 . . Catastrophic 3 | . 1 . 2 . . Database Lockouts . | . . . . . . Manual 34 | . 13 . 20 . 1 Terminals 45 | . 15 2 28 . . Fabricators . | . . . . . . Repair Stations 3 | . 2 . 1 . . Recycling Units 4 | . 2 . 2 . . Scanalyzers 20 | . . . 20 . . Garrison Access . | . . . . . . Terminal Hacks 43 | . 5 1 13 . 24 Record 23 | . . . . . 23 Part Schematic 3 | . . . 3 . . Robot Analysis 5 | . 1 . 4 . . Prototype ID Bank 3 | . 1 . 2 . . Branch Access Points 1 | . . . 1 . . Emergency Access Points 1 | . . . 1 . . Alert Level 1 | . . . 1 . . Locate Traps 2 | . 2 . . . . Dispatch Records 1 | . . . 1 . . Zone Layout 2 | . 1 1 . . . Derelict Proto ID Bank 1 | . . . . . 1 Fabricator Hacks . | . . . . . . Repair Station Hacks 2 | . 2 . . . . Scan Component 1 | . 1 . . . . Repair 1 | . 1 . . . . Recycling Unit Hacks . | . . . . . . Scanalyzer 17 | . . . 17 . . Insert Component 9 | . . . 9 . . Analyze 8 | . . . 8 . . Garrison Access Hacks . | . . . . . . Unauthorized Hacks 14 | . 7 . 7 . . Terminals 10 | . 5 . 5 . . Skim 10 | . 5 . 5 . . Fabricators . | . . . . . . Repair Stations . | . . . . . . Recycling Units 4 | . 2 . 2 . . Tunnel 4 | . 2 . 2 . . Scanalyzers . | . . . . . . Garrison Access . | . . . . . . Data Cores Recovered 1 | . 1 . . . . Used . | . . . . . . Hacking Detections 20 | . 8 1 11 . . Full Trace Events 1 | . . . 1 . . Feedback Events 1 | . . . 1 . . Corruption 1 | . . . 1 . . Feedback Blocked . | . . . . . . Robot Schematics Acquired . | . . . . . . Robots Built . | . . . . . . Authchips . | . . . . . . Time . | . . . . . . Total Robot Build Rating . | . . . . . . Part Schematics Acquired 10 | . . . 10 . . Parts Built . | . . . . . . Authchips . | . . . . . . Time . | . . . . . . Total Part Build Rating . | . . . . . . Parts Repaired 1 | . 1 . . . . Time 26 | . 26 . . . . Parts Recycled . | . . . . . . Recycled Matter . | . . . . . . Retrieved Matter . | . . . . . . Retrieved Components . | . . . . . . Parts Scanalyzed 8 | . . . 8 . . Part Schematics Acquired 8 | . . . 8 . . Parts Damaged . | . . . . . . Bothacking | -11 -10 -10 -9 -9 -9 ------------ Run | Yrd Mat Min Mat Min Exi Used RIF Installer . | . . . . . . Robots Hacked 4 | . . . . 1 3 Non-combat 3 | . . . . . 3 Combat 1 | . . . . 1 . Robot Hacks Applied 4 | . . . . 1 3 parse_system 4 | . . . . 1 3 Relay Couplers Released . | . . . . . . Fabnet Peak Effective % . | . . . . . . Robots Rewired . | . . . . . . Allies Hacked . | . . . . . . Hacks Repelled . | . . . . . . Allies | -11 -10 -10 -9 -9 -9 -------- Run | Yrd Mat Min Mat Min Exi Total Allies 3 | . . . . 3 . Largest Group 3 | . . . . 3 3 Highest-Rated Group 40 | . . . . 40 40 Highest-Rated Ally 16 | . . . . 16 16 Total Orders 1 | . . . . . 1 EXPLORE 1 | . . . . . 1 Ally Attacks 19 | . . . . . 19 Total Damage 35 | . . . . . 35 Kills . | . . . . . . Allies Corrupted . | . . . . . . Allies Melted . | . . . . . . Intel | -11 -10 -10 -9 -9 -9 ------- Run | Yrd Mat Min Mat Min Exi Robot Analysis Total 5 | . 1 . 4 . . Derelict Logs Recovered 3 | . . 1 . 2 . Drone Launches 1 | . . . . . 1 Drone Recoveries 1 | . . . . . 1 Exploration | -11 -10 -10 -9 -9 -9 ------------- Run | Yrd Mat Min Mat Min Exi Turns Passed 6366 | 262 1461 1055 2323 617 648 Spaces Moved 3330 | 142 758 629 1070 361 370 Core 6 | 6 . . . . . Treads 3324 | 136 758 629 1070 361 370 Legs . | . . . . . . Wheels . | . . . . . . Hover . | . . . . . . Flight . | . . . . . . Fastest Speed 50 | 50 160 160 145 145 145 Average Speed 155 | 155 161 160 156 145 146 Slowest Speed 240 | 160 240 160 160 145 225 Overloaded Moves . | . . . . . . Propulsion Burnouts . | . . . . . . Robots Hopped . | . . . . . . Cave-ins Triggered . | . . . . . . Exploration Rate (%) 68 | 6 94 96 97 57 62 Regions Visited 5 Branch Regions 3 Pre-discovered Areas 10 | . 3 1 4 1 1 Known Exits Taken 2 | . . 1 1 . . Unknown Exits Taken 3 | 1 1 . . 1 . Scrap Searched 1 | . . 1 . . . Spaces Dug 23 | . 23 . . . . Terrain Destroyed 155 | . 97 14 8 21 15 Melee . | . . . . . . Projectile . | . . . . . . AOE 155 | . 97 14 8 21 15 Terrain Rammed . | . . . . . . Walls Destroyed . | . . . . . . Machines Disabled . | . . . . . . Actions | -11 -10 -10 -9 -9 -9 --------- Run | Yrd Mat Min Mat Min Exi Total 4107 | 163 902 676 1490 418 458 Wait 361 | 3 55 36 199 30 38 Move 3325 | 141 757 628 1069 360 370 Hop . | . . . . . . Pick Up 50 | 4 16 2 20 . 8 Fast Attach 16 | 6 2 1 7 . . Attach 11 | . . . 2 1 8 Detach 2 | . . . . . 2 Swap 33 | . 7 1 17 2 6 Drop 58 | . 7 4 37 . 10 Fire 245 | 9 58 3 138 24 13 Melee 4 | . . . . 1 3 Ram . | . . . . . . Kick . | . . . . . . Crush . | . . . . . . Escape Stasis . | . . . . . . Rewire . | . . . . . . Trap 2 | . . 1 1 . . Miscellaneous . | . . . . . . Route ------- -11/Scrapyard -10/Materials (discovered 6 exits: *Mat x3 / *Min x2 / Sub) -10/Mines (discovered 3 exits: *Mat x2 / Sub) -9/Materials (discovered 5 exits: *Mat x3 / *Min x2) -9/Mines -9/Exiles (discovered 1 exit: [*Min]) History --------- Turn | Location | Event 4 | -11/Scrapyard | Discovered new exit (range 14) 263 | -11/Scrapyard | Entered Materials 319 | -10/Materials | Build established: Mutant 1211 | -10/Materials | Discovered new exit (range 5) 1306 | -10/Materials | Identified exit to Subcaves 1312 | -10/Materials | Discovered new exit (range 11) 1339 | -10/Materials | Identified exit to Materials 1356 | -10/Materials | Repaired Lgt. Treads 1373 | -10/Materials | Learned 2 Mines zone layouts 1377 | -10/Materials | Learned 4 Recycling zone layouts 1378 | -10/Materials | Learned Storage security intel 1379 | -10/Materials | Learned 2 Mines zone layouts 1385 | -10/Materials | Learned Storage emergency access door positions 1421 | -10/Materials | Learned location of 2 exits from Subcaves 1460 | -10/Materials | Discovered new exit (range 8) 1652 | -10/Materials | Discovered new exit (range 15) 1724 | -10/Materials | Entered Mines 2040 | -10/Mines | Found a hidden stash of uninstalled traps 2293 | -10/Mines | Received a Rocket Launcher from a helpful Derelict 2779 | -10/Mines | Entered Materials 2779 | -9/Materials | Evolved 2 slots: Propulsion x1, Utility x1 2780 | -9/Materials | Identified exit to Materials 3470 | -9/Materials | Discovered exit to Materials (range 7) 3662 | -9/Materials | Build established: Scavenger-Mutant 3688 | -9/Materials | Discovered new exit (range 16) 3697 | -9/Materials | Identified exit to Mines 4262 | -9/Materials | Build established: Mutant 4569 | -9/Materials | Learned location of 3 exits from Materials 4671 | -9/Materials | Learned Recycling recycling unit intel 4741 | -9/Materials | Learned 4 Recycling zone layouts 4780 | -9/Materials | Learned 2 Materials zone layouts 5102 | -9/Materials | Entered Mines 5111 | -9/Mines | Learned location of Storage (-7) 5250 | -9/Mines | Deemed a non-threat by the Exiles lab entrance 5250 | -9/Mines | Discovered new exit (range 5) 5541 | -9/Mines | Assembled infested the area 5572 | -9/Mines | Learned Materials stockpile data 5619 | -9/Mines | Met 8R-AWN 5645 | -9/Mines | Assisted by bots powering up and referring to "LRC-V3" 5719 | -9/Mines | Entered Exiles 5719 | -9/Exiles | Accompanied by 3 allies 5754 | -9/Exiles | Welcomed by 8R-AWN 5779 | -9/Exiles | Met EX-HEX 5825 | -9/Exiles | Met EX-BIN 5847 | -9/Exiles | Aligned with FarCom system 5849 | -9/Exiles | Given EX-Vault access code 5885 | -9/Exiles | Opened EX-Vault 5894 | -9/Exiles | Found Field Lobotomy Kit 5899 | -9/Exiles | Found AWS/Gauss 5906 | -9/Exiles | Found Supersonic Drone Bay 5939 | -9/Exiles | Warned to stay clear of 0b10 Research branches 5978 | -9/Exiles | Met EX-DEC 5988 | -9/Exiles | Learned location of Zion (-7) 6085 | -9/Exiles | Learned about 8R-AWN's background 6267 | -9/Exiles | Attacked by the Exiles 6290 | -9/Exiles | Core integrity fell below 50% 6295 | -9/Exiles | Discovered new exit (range 26) 6318 | -9/Exiles | Lost 3 allies 6339 | -9/Exiles | Core integrity fell below 20% 6340 | -9/Exiles | Lost 5 parts (1p3n1w) 6367 | -9/Exiles | Destroyed by 8R-AWN with 8R-AWN's Boregun Last Messages --------------- 06350_ V3 BCM I4GD0WHH>NX BVL&/VVGAX 06350_ Penetrated by HV Slug. 06350_ HV Slug penetrates Earth. 06350_ Penetrated by HV Slug. 06350_ Critical hit (Destroy). 06350_ Minigun destroyed. 06350_ HV Slug penetrates Earth. 06355_ Penetrated by HV Slug. 06355_ HV Slug penetrates Earth. 06355_ Penetrated by HV Slug. 06355_ HV Slug penetrates Earth. 06359_ Penetrated by HV Slug. 06359_ HV Slug penetrates Earth. 06359_ Penetrated by HV Slug. 06359_ HV Slug penetrates Earth. 06363_ HV Slug penetrates Wall. 06363_ HV Slug penetrates Earth. 06363_ Penetrated by HV Slug. 06363_ HV Slug penetrates Earth. 06367_ Penetrated by HV Slug. Map ----- +----------------------------------------------------+ | ""#??????????????????????????????????????????????? | | ""#??????????????????????????????????????????????? | | ""#??????????????????????????????????????????????? | | ""#??????????????????????????????????????????????? | | ""#??????????????????????????????????????????????? | | ""#??????????????????????????????????????????????? | | ""#??????????????????????????????????????????????? | | ""#??????????????????????????????????????????????? | | ""#??????????????????????????????????????????????? | | ""##?????????????????????????????????????????????? | | """"?????????????????????????????????????????????? | | ""##?????????????????????????????????????????????? | | """"?????????????????????????????????????????????? | | #??????????????????????????????????????????????? | | ""#??????????????????????????????????????????????? | | ###????????????????????????????????#??????????#### | | ?????????????????????????????????# ??????????## # | | ????????????????????????????????# #?????????## # | | ???????????????????????????????# #??????????# < # | | #########?????????????????????# #???????????# # | | """"""""##???????????????????# #????????????# ? | | """ """"##?????????????????# #????????????## #? | | "" " #????????????????# #????????????## ## | | " """#?????????####### #?????????????# # | | " "#???????########;#??????????????# # | | " "##????###### " @##?????????????## # | | ""###??## %g ###???????????## # # | | """#??### # #####?????????# ### | | "#??## # ] ####???????### ##?? | | ##?## %*[ ########## #??? | | #### = [ #""""## ##??? | | ### ! ##??? | | #??? | | a ;# ##?? | | ##;" " #### ### | | #" ###;##;######### # | | ###;#### #######???###### | | ### #### ##?????????????### | | " #######?## ##???????????????### | | """ ""#?####???# #??????????????????### | | ""#" "##????????# #???????????????????#" * | | """##"""""""##?????????# #???????????????????#### | | ""###########??????????? #??????????????????????# | | ###????????????????????? ???????????????????????## | | ???????????????????????? ????????????????????????# | | ???????????????????????? ????????????????????????? | | ???????????????????????? ????????????????????????? | | ???????????????????????? ????????????????????????? | | ?????????????????????????????????????????????????? | | ?????????????????????????????????????????????????? | +----------------------------------------------------+ Best States ------------- Heat Dissipation 28 Energy Generation 14 Energy Capacity 280 Matter Stores 300 Matter Capacity 300 Sight Range 16 Terrain Scan Density 10 Armor Coverage 150 Evasion (%) 40 Targeting Accuracy 6 Recoil Reduction 3 Item Schematics ----------------- Plasma Cutter | -9/Materials | Scanalyzed Datajack | -9/Materials | Hacked Minigun | -9/Materials | Scanalyzed Structural Scanner | -9/Materials | Scanalyzed Imp. Terrain Scanner | -9/Materials | Scanalyzed Seismic Detector | -9/Materials | Scanalyzed Hvy. Ion Engine | -9/Materials | Scanalyzed Hammer | -9/Materials | Scanalyzed Hacking Suite | -9/Materials | Scanalyzed Hcp. Storage Unit | -9/Materials | Hacked Robot Schematics ------------------ None Fabricated ------------ Nothing Alien Tech Used ----------------- None Achievements -------------- None Challenges ------------ None Game ------ Seed ParticleTrackerCharger Manual? 0 Play Time 00:45:07 Cumulative 83.0 hours Start 2024.09.13 @ 05:22:07 End 2024.09.13 @ 06:03:36 Sessions 1 Manual Loads 0 Difficulty Rogue Special Mode None Game No. 45 Rogue 45 Adventurer 0 Explorer 0 Win Type - Total 0 Types 0/0/0/0/0/0/0/0/0 Lore% 44 Gallery% 60 Achievement% 51 Wizard Run 0 Options --------- Layout 0 ASCII 0 Keyboard 0 Movement Mouse Keybinds 0 Fullscreen 1 Font 24/Smallcaps Map View 183x50 Zoom Use 0% Tactical HUD 1 Map Filters NONE Filters NONE Steam 0 RUN: c89fcec5-e7d7-4131-a72d-8b8a4182520d